[Event "*** Titled Tuesday Blitz"]
[Site "Chess.com"]
[Date "2021.03.09"]
[Round "8"]
[White "Semen_Khanin"]
[Black "rasmussvane"]
[Result "0-1"]
[WhiteElo "2837"]
[BlackElo "2952"]
[TimeControl "180+1"]
[EndTime "11:32:27 PST"]
[Termination "rasmussvane won by resignation"]

1. e4 {[%clk 0:03:00.9]} 1... c6 {[%clk 0:03:00.1]} 2. Nf3 {[%clk 0:02:59.8]}
2... d5 {[%clk 0:03:01]} 3. d3 {[%clk 0:03:00]} 3... Bg4 {[%clk 0:03:00.4]} 4.
h3 {[%clk 0:02:59.9]} 4... Bh5 {[%clk 0:03:00.8]} 5. g4 {[%clk 0:02:59.9]} 5...
Bg6 {[%clk 0:03:01]} 6. h4 {[%clk 0:03:00.4]} 6... h6 {[%clk 0:02:24.9]} 7. Qe2
{[%clk 0:02:59.6]} 7... e6 {[%clk 0:02:24]} 8. Nc3 {[%clk 0:02:58.6]} 8... Bb4
{[%clk 0:02:17.5]} 9. Bd2 {[%clk 0:02:55.4]} 9... d4 {[%clk 0:02:08.7]} 10. Nb1
{[%clk 0:02:54.8]} 10... Qb6 {[%clk 0:02:08.9]} 11. Bh3 {[%clk 0:02:48.9]} 11...
Nd7 {[%clk 0:02:04.4]} 12. h5 {[%clk 0:02:45.8]} 12... Bh7 {[%clk 0:02:01.3]}
13. g5 {[%clk 0:02:45.9]} 13... hxg5 {[%clk 0:01:56.7]} 14. Nxg5 {[%clk
0:02:46.1]} 14... Ngf6 {[%clk 0:01:41.3]} 15. Bxb4 {[%clk 0:02:38.1]} 15...
Qxb4+ {[%clk 0:01:40.6]} 16. Nd2 {[%clk 0:02:38.7]} 16... Bg8 {[%clk 0:01:32.9]}
17. e5 {[%clk 0:02:13]} 17... Nd5 {[%clk 0:01:15.5]} 18. O-O-O {[%clk 0:01:47]}
18... Nc3 {[%clk 0:00:51.6]} 19. bxc3 {[%clk 0:01:15.2]} 19... dxc3 {[%clk
0:00:52.5]} 20. Nc4 {[%clk 0:01:15.6]} 20... Nb6 {[%clk 0:00:30.4]} 21. a3
{[%clk 0:01:15.6]} 21... Qa4 {[%clk 0:00:23.4]} 22. Qe1 {[%clk 0:01:09.5]} 22...
Nxc4 {[%clk 0:00:23.2]} 23. Qxc3 {[%clk 0:01:09.8]} 23... Qxa3+ {[%clk
0:00:21.2]} 24. Qxa3 {[%clk 0:01:08.4]} 24... Nxa3 {[%clk 0:00:22.1]} 25. c4
{[%clk 0:00:58.6]} 25... Rxh5 {[%clk 0:00:20.5]} 26. f4 {[%clk 0:00:58.9]} 26...
b5 {[%clk 0:00:20.1]} 27. Kb2 {[%clk 0:00:54.9]} 27... b4 {[%clk 0:00:18.3]} 28.
Bg2 {[%clk 0:00:55.2]} 28... Rxh1 {[%clk 0:00:18]} 29. Bxc6+ {[%clk 0:00:49.9]}
29... Ke7 {[%clk 0:00:17.8]} 30. Rxh1 {[%clk 0:00:49.9]} 30... Rd8 {[%clk
0:00:18.3]} 31. Be4 {[%clk 0:00:42.5]} 31... f5 {[%clk 0:00:18.4]} 32. exf6+
{[%clk 0:00:30.7]} 32... gxf6 {[%clk 0:00:19.3]} 33. Nf3 {[%clk 0:00:30]} 33...
a5 {[%clk 0:00:17.9]} 34. f5 {[%clk 0:00:27.7]} 34... exf5 {[%clk 0:00:10.9]}
35. Bxf5 {[%clk 0:00:27.5]} 35... a4 {[%clk 0:00:11.1]} 36. Rg1 {[%clk
0:00:21.6]} 36... Bxc4 {[%clk 0:00:08.6]} 37. dxc4 {[%clk 0:00:19.4]} 37...
Nxc4+ {[%clk 0:00:09.5]} 38. Kc2 {[%clk 0:00:19.7]} 38... Ne3+ {[%clk
0:00:09.5]} 39. Kb2 {[%clk 0:00:19.6]} 39... Nxf5 {[%clk 0:00:10.4]} 40. Re1+
{[%clk 0:00:19.8]} 40... Kd7 {[%clk 0:00:07.7]} 41. Re4 {[%clk 0:00:16.9]} 41...
Rb8 {[%clk 0:00:07]} 42. Rf4 {[%clk 0:00:17.1]} 42... Ke6 {[%clk 0:00:06.6]} 43.
Re4+ {[%clk 0:00:16.4]} 43... Kd5 {[%clk 0:00:06.9]} 44. Rf4 {[%clk 0:00:16.4]}
44... Nd6 {[%clk 0:00:07.4]} 45. Rxf6 {[%clk 0:00:16.5]} 45... Nc4+ {[%clk
0:00:07.9]} 46. Kb1 {[%clk 0:00:16.6]} 46... b3 {[%clk 0:00:07.5]} 47. Rf5+
{[%clk 0:00:13.6]} 47... Ke4 {[%clk 0:00:07.2]} 48. Rc5 {[%clk 0:00:13.7]} 48...
Kd3 {[%clk 0:00:05.4]} 49. Ne1+ {[%clk 0:00:05.8]} 49... Kd4 {[%clk 0:00:05.8]}
50. Rc6 {[%clk 0:00:05.1]} 50... Na3+ {[%clk 0:00:06.2]} 51. Kb2 {[%clk
0:00:05.4]} 51... Nc4+ {[%clk 0:00:06.9]} 52. Kb1 {[%clk 0:00:05.9]} 52... a3
{[%clk 0:00:07.5]} 53. Nf3+ {[%clk 0:00:06.2]} 53... Kd5 {[%clk 0:00:08.1]} 54.
Rxc4 {[%clk 0:00:05.4]} 54... Kxc4 {[%clk 0:00:08.3]} 55. Ne5+ {[%clk
0:00:04.6]} 55... Kc3 {[%clk 0:00:08.4]} 56. Ka1 {[%clk 0:00:04.5]} 56... b2+
{[%clk 0:00:08.2]} 0-1

[Event "*** Titled Tuesday Blitz"]
[Site "Chess.com"]
[Date "2021.03.09"]
[Round "8"]
[White "Abund"]
[Black "Elshan1985"]
[Result "0-1"]
[WhiteElo "2650"]
[BlackElo "2884"]
[TimeControl "180+1"]
[EndTime "11:32:29 PST"]
[Termination "Elshan1985 won by checkmate"]

1. e4 {[%clk 0:03:00.9]} 1... e6 {[%clk 0:02:56.7]} 2. d4 {[%clk 0:03:00.7]}
2... d5 {[%clk 0:02:56.8]} 3. Nd2 {[%clk 0:03:00.9]} 3... Be7 {[%clk 0:02:55.9]}
4. Ngf3 {[%clk 0:03:00.5]} 4... Nf6 {[%clk 0:02:53.8]} 5. e5 {[%clk 0:03:00.7]}
5... Nfd7 {[%clk 0:02:54.4]} 6. Bd3 {[%clk 0:03:01.1]} 6... c5 {[%clk
0:02:54.6]} 7. c3 {[%clk 0:03:01.4]} 7... b6 {[%clk 0:02:55.3]} 8. O-O {[%clk
0:02:43.8]} 8... Ba6 {[%clk 0:02:54.8]} 9. Bxa6 {[%clk 0:02:42.8]} 9... Nxa6
{[%clk 0:02:55.7]} 10. Qe2 {[%clk 0:02:22.6]} 10... Nab8 {[%clk 0:02:55.2]} 11.
Rd1 {[%clk 0:02:22.8]} 11... Nc6 {[%clk 0:02:55.2]} 12. Nf1 {[%clk 0:02:23.1]}
12... Rc8 {[%clk 0:02:51.9]} 13. Ng3 {[%clk 0:02:23.2]} 13... h5 {[%clk
0:02:51.9]} 14. h3 {[%clk 0:02:18.6]} 14... g6 {[%clk 0:02:50.6]} 15. Bf4 {[%clk
0:02:14.8]} 15... g5 {[%clk 0:02:49.6]} 16. Be3 {[%clk 0:02:14.4]} 16... cxd4
{[%clk 0:02:42.5]} 17. cxd4 {[%clk 0:02:10.5]} 17... Nf8 {[%clk 0:02:42.8]} 18.
Qd2 {[%clk 0:01:57.5]} 18... g4 {[%clk 0:02:40.7]} 19. hxg4 {[%clk 0:01:54.8]}
19... hxg4 {[%clk 0:02:41.6]} 20. Nh2 {[%clk 0:01:53.8]} 20... Bb4 {[%clk
0:02:41.6]} 21. Qe2 {[%clk 0:01:16.9]} 21... Qh4 {[%clk 0:02:42.1]} 22. Ngf1
{[%clk 0:01:15.7]} 22... Rg8 {[%clk 0:02:38.9]} 23. Bf4 {[%clk 0:01:14.6]} 23...
Be7 {[%clk 0:02:31.6]} 24. Ne3 {[%clk 0:01:06.8]} 24... g3 {[%clk 0:02:28]} 25.
fxg3 {[%clk 0:01:02.9]} 25... Qh7 {[%clk 0:02:26.8]} 26. Neg4 {[%clk 0:00:55.1]}
26... Ng6 {[%clk 0:02:19]} 27. Bh6 {[%clk 0:00:51.1]} 27... Kd7 {[%clk
0:02:05.6]} 28. Rac1 {[%clk 0:00:50.8]} 28... Rc7 {[%clk 0:02:03.7]} 29. Rc3
{[%clk 0:00:45.3]} 29... Rgc8 {[%clk 0:02:02]} 30. Qf2 {[%clk 0:00:42.2]} 30...
Nh8 {[%clk 0:01:55.6]} 31. Rdc1 {[%clk 0:00:33.2]} 31... Qe4 {[%clk 0:01:54.3]}
32. Be3 {[%clk 0:00:28.5]} 32... Nb4 {[%clk 0:01:42.7]} 33. Rxc7+ {[%clk
0:00:19.9]} 33... Rxc7 {[%clk 0:01:43.6]} 34. Rxc7+ {[%clk 0:00:20.3]} 34...
Kxc7 {[%clk 0:01:44.5]} 35. a3 {[%clk 0:00:19.7]} 35... Nc6 {[%clk 0:01:29.5]}
36. b4 {[%clk 0:00:10.1]} 36... a5 {[%clk 0:01:28.6]} 37. b5 {[%clk 0:00:09.4]}
37... Qb1+ {[%clk 0:01:28.5]} 38. Qf1 {[%clk 0:00:08.7]} 38... Qxf1+ {[%clk
0:01:26.9]} 39. Kxf1 {[%clk 0:00:09.6]} 39... Bxa3 {[%clk 0:01:21.2]} 40. bxc6
{[%clk 0:00:09.5]} 40... Kxc6 {[%clk 0:01:21.8]} 41. Ke2 {[%clk 0:00:07.4]}
41... b5 {[%clk 0:01:17.3]} 42. Kd3 {[%clk 0:00:07.3]} 42... b4 {[%clk
0:01:17.9]} 43. Nh6 {[%clk 0:00:05.5]} 43... a4 {[%clk 0:01:17.5]} 44. Kc2
{[%clk 0:00:04.7]} 44... b3+ {[%clk 0:01:17.4]} 45. Kc3 {[%clk 0:00:05]} 45...
Kb5 {[%clk 0:01:17.7]} 46. N2g4 {[%clk 0:00:05.1]} 46... Bb4+ {[%clk 0:01:18]}
47. Kb2 {[%clk 0:00:05]} 47... Kc4 {[%clk 0:01:18.5]} 48. Bc1 {[%clk 0:00:05.2]}
48... a3+ {[%clk 0:01:18.6]} 49. Kb1 {[%clk 0:00:05.6]} 49... Kxd4 {[%clk
0:01:18.1]} 50. Nf6 {[%clk 0:00:03.2]} 50... Kxe5 {[%clk 0:01:15.3]} 51. Nhg4+
{[%clk 0:00:03.3]} 51... Kf5 {[%clk 0:01:14.6]} 52. Nd7 {[%clk 0:00:03.4]} 52...
Kxg4 {[%clk 0:01:14.2]} 53. Ne5+ {[%clk 0:00:03.7]} 53... Kxg3 {[%clk
0:01:14.3]} 54. Nd3 {[%clk 0:00:04.1]} 54... Bd6 {[%clk 0:01:10.5]} 55. Be3
{[%clk 0:00:04.4]} 55... Kxg2 {[%clk 0:01:10.4]} 56. Bd4 {[%clk 0:00:04.6]}
56... Ng6 {[%clk 0:01:10.6]} 57. Bc5 {[%clk 0:00:04.7]} 57... Bxc5 {[%clk
0:01:10.6]} 58. Nxc5 {[%clk 0:00:05.6]} 58... e5 {[%clk 0:01:08.6]} 59. Nxb3
{[%clk 0:00:05.8]} 59... f5 {[%clk 0:01:08.7]} 60. Kc2 {[%clk 0:00:05.4]} 60...
f4 {[%clk 0:01:09]} 61. Kd3 {[%clk 0:00:05.9]} 61... f3 {[%clk 0:01:09.3]} 62.
Ke3 {[%clk 0:00:06.3]} 62... f2 {[%clk 0:01:09.6]} 63. Nd2 {[%clk 0:00:06.9]}
63... f1=Q {[%clk 0:01:09.3]} 64. Nxf1 {[%clk 0:00:07]} 64... Kxf1 {[%clk
0:01:10.2]} 65. Kd2 {[%clk 0:00:06.2]} 65... a2 {[%clk 0:01:10.5]} 66. Kc2
{[%clk 0:00:06.4]} 66... a1=Q {[%clk 0:01:10.6]} 67. Kd2 {[%clk 0:00:06.7]}
67... Qa2+ {[%clk 0:01:10.1]} 68. Ke3 {[%clk 0:00:07.6]} 68... Qb3+ {[%clk
0:01:09.3]} 69. Kd2 {[%clk 0:00:07.7]} 69... e4 {[%clk 0:01:06.7]} 70. Kc1
{[%clk 0:00:07.4]} 70... Qa2 {[%clk 0:00:57.9]} 71. Kd1 {[%clk 0:00:07.2]} 71...
Nf4 {[%clk 0:00:56.5]} 72. Kc1 {[%clk 0:00:07.6]} 72... Nd3+ {[%clk 0:00:56.6]}
73. Kd1 {[%clk 0:00:08.5]} 73... Qe2# {[%clk 0:00:56.4]} 0-1

[Event "*** Titled Tuesday Blitz"]
[Site "Chess.com"]
[Date "2021.03.09"]
[Round "8"]
[White "lupta_robin"]
[Black "XDPS"]
[Result "1-0"]
[WhiteElo "2597"]
[BlackElo "2709"]
[TimeControl "180+1"]
[EndTime "11:32:31 PST"]
[Termination "lupta_robin won by checkmate"]

1. d4 {[%clk 0:03:00.9]} 1... d5 {[%clk 0:02:58.9]} 2. c4 {[%clk 0:03:01.1]}
2... e6 {[%clk 0:02:58.1]} 3. Nc3 {[%clk 0:03:00.3]} 3... Nf6 {[%clk 0:02:57.9]}
4. Nf3 {[%clk 0:02:56.3]} 4... c6 {[%clk 0:02:54]} 5. e3 {[%clk 0:02:39.7]} 5...
Nbd7 {[%clk 0:02:50.3]} 6. Qc2 {[%clk 0:02:37.2]} 6... Bd6 {[%clk 0:02:49.2]} 7.
b3 {[%clk 0:02:29.4]} 7... O-O {[%clk 0:02:48.5]} 8. Be2 {[%clk 0:02:23.9]} 8...
b6 {[%clk 0:02:47.5]} 9. O-O {[%clk 0:02:23.1]} 9... Bb7 {[%clk 0:02:46.8]} 10.
Bb2 {[%clk 0:02:21.1]} 10... Qe7 {[%clk 0:02:46.6]} 11. Rfd1 {[%clk 0:02:18.7]}
11... Rfd8 {[%clk 0:02:45.9]} 12. Rac1 {[%clk 0:02:18.5]} 12... Rac8 {[%clk
0:02:45.7]} 13. e4 {[%clk 0:02:11.8]} 13... dxe4 {[%clk 0:02:44.8]} 14. Nxe4
{[%clk 0:02:11.9]} 14... Nxe4 {[%clk 0:02:44.3]} 15. Qxe4 {[%clk 0:02:12.8]}
15... Nf6 {[%clk 0:02:38.6]} 16. Qh4 {[%clk 0:02:04.8]} 16... c5 {[%clk
0:02:39]} 17. dxc5 {[%clk 0:01:59.3]} 17... Bxc5 {[%clk 0:02:39.1]} 18. Ne5
{[%clk 0:01:51.4]} 18... Ne4 {[%clk 0:02:20.3]} 19. Qxe7 {[%clk 0:01:47]} 19...
Bxe7 {[%clk 0:02:21.2]} 20. Nd3 {[%clk 0:01:20.3]} 20... f6 {[%clk 0:02:15.1]}
21. Bf3 {[%clk 0:01:17.4]} 21... e5 {[%clk 0:02:10.3]} 22. Kf1 {[%clk
0:01:13.1]} 22... Kf7 {[%clk 0:02:07.7]} 23. Ke2 {[%clk 0:01:10.7]} 23... Ba8
{[%clk 0:01:36.4]} 24. a3 {[%clk 0:01:03.2]} 24... a5 {[%clk 0:01:25.7]} 25. Rc2
{[%clk 0:01:02]} 25... g6 {[%clk 0:01:20.5]} 26. h3 {[%clk 0:00:45.2]} 26... h5
{[%clk 0:01:18.8]} 27. g3 {[%clk 0:00:44.9]} 27... Nxg3+ {[%clk 0:01:14.6]} 28.
fxg3 {[%clk 0:00:44]} 28... e4 {[%clk 0:01:15.5]} 29. Ne5+ {[%clk 0:00:36.3]}
29... fxe5 {[%clk 0:01:13.4]} 30. Bg2 {[%clk 0:00:36.9]} 30... Rxd1 {[%clk
0:01:07.6]} 31. Kxd1 {[%clk 0:00:37.8]} 31... Rd8+ {[%clk 0:01:07]} 32. Ke2
{[%clk 0:00:35.6]} 32... Rd3 {[%clk 0:01:05.9]} 33. Rc3 {[%clk 0:00:32.8]} 33...
Ke6 {[%clk 0:01:05.5]} 34. Bf1 {[%clk 0:00:22.4]} 34... Rxc3 {[%clk 0:00:59.1]}
35. Bxc3 {[%clk 0:00:23]} 35... Bxa3 {[%clk 0:01:00]} 36. Bg2 {[%clk 0:00:22]}
36... Bc5 {[%clk 0:00:59.7]} 37. Bd2 {[%clk 0:00:21.5]} 37... Bd4 {[%clk
0:00:58.7]} 38. g4 {[%clk 0:00:18.8]} 38... hxg4 {[%clk 0:00:58.4]} 39. hxg4
{[%clk 0:00:19.7]} 39... Bc6 {[%clk 0:00:58.6]} 40. Bh3 {[%clk 0:00:18.4]} 40...
e3 {[%clk 0:00:46.7]} 41. g5+ {[%clk 0:00:14.8]} 41... Kd6 {[%clk 0:00:46.8]}
42. Bxe3 {[%clk 0:00:15.4]} 42... Bxe3 {[%clk 0:00:41.9]} 43. Kxe3 {[%clk
0:00:15.7]} 43... Kc5 {[%clk 0:00:42.5]} 44. Be6 {[%clk 0:00:16.1]} 44... Kb4
{[%clk 0:00:25.2]} 45. Bf7 {[%clk 0:00:14.4]} 45... Kc3 {[%clk 0:00:17.9]} 46.
Bxg6 {[%clk 0:00:13.5]} 46... Kxb3 {[%clk 0:00:18.3]} 47. Bf7 {[%clk 0:00:13.8]}
47... Kc3 {[%clk 0:00:06.5]} 48. g6 {[%clk 0:00:13.4]} 48... a4 {[%clk 0:00:07]}
49. g7 {[%clk 0:00:13.4]} 49... a3 {[%clk 0:00:07.9]} 50. c5 {[%clk 0:00:11.9]}
50... b5 {[%clk 0:00:02.2]} 51. g8=Q {[%clk 0:00:12]} 51... b4 {[%clk
0:00:02.8]} 52. Qg7 {[%clk 0:00:12.3]} 52... b3 {[%clk 0:00:01.6]} 53. Qxe5+
{[%clk 0:00:12.7]} 53... Kc2 {[%clk 0:00:01.7]} 54. Qf5+ {[%clk 0:00:12.3]}
54... Kc3 {[%clk 0:00:01.9]} 55. Qf6+ {[%clk 0:00:12.9]} 55... Kc2 {[%clk
0:00:02.3]} 56. Qxc6 {[%clk 0:00:12]} 56... Kc3 {[%clk 0:00:02.7]} 57. Qb5
{[%clk 0:00:10.7]} 57... b2 {[%clk 0:00:02.7]} 58. Qb3# {[%clk 0:00:11.1]} 1-0

[Event "*** Titled Tuesday Blitz"]
[Site "Chess.com"]
[Date "2021.03.09"]
[Round "8"]
[White "Love_craft"]
[Black "kakakz"]
[Result "0-1"]
[WhiteElo "2535"]
[BlackElo "2429"]
[TimeControl "180+1"]
[EndTime "11:32:33 PST"]
[Termination "kakakz won by checkmate"]

1. Nf3 {[%clk 0:03:00.9]} 1... e6 {[%clk 0:03:00.5]} 2. g3 {[%clk 0:03:01]} 2...
d5 {[%clk 0:03:01.1]} 3. Bg2 {[%clk 0:03:01.5]} 3... Nf6 {[%clk 0:03:01.3]} 4.
O-O {[%clk 0:03:02]} 4... Be7 {[%clk 0:03:00.5]} 5. d3 {[%clk 0:03:02.4]} 5...
O-O {[%clk 0:03:00.6]} 6. Nbd2 {[%clk 0:03:03]} 6... c5 {[%clk 0:02:59.7]} 7. e4
{[%clk 0:03:03.4]} 7... Nc6 {[%clk 0:03:00.6]} 8. e5 {[%clk 0:03:03.5]} 8... Nd7
{[%clk 0:03:00.1]} 9. Re1 {[%clk 0:03:04.4]} 9... b5 {[%clk 0:02:54.6]} 10. h4
{[%clk 0:03:03.6]} 10... Qc7 {[%clk 0:02:51.9]} 11. Qe2 {[%clk 0:03:02.4]} 11...
Bb7 {[%clk 0:02:40.1]} 12. Nf1 {[%clk 0:03:01.6]} 12... Nd4 {[%clk 0:02:38]} 13.
Nxd4 {[%clk 0:03:00.2]} 13... cxd4 {[%clk 0:02:38.9]} 14. Bf4 {[%clk 0:03:00.4]}
14... Rfc8 {[%clk 0:02:38.4]} 15. Rec1 {[%clk 0:02:59.8]} 15... Nc5 {[%clk
0:02:37.3]} 16. Nh2 {[%clk 0:02:52.8]} 16... Na4 {[%clk 0:02:36.7]} 17. Rab1
{[%clk 0:02:53.1]} 17... a5 {[%clk 0:02:28.7]} 18. Nf3 {[%clk 0:02:52.5]} 18...
Qb6 {[%clk 0:02:27.3]} 19. Bg5 {[%clk 0:02:44.6]} 19... Bf8 {[%clk 0:02:25.9]}
20. h5 {[%clk 0:02:43.7]} 20... h6 {[%clk 0:02:13.2]} 21. Bf4 {[%clk 0:02:43.7]}
21... Rc7 {[%clk 0:02:13.2]} 22. g4 {[%clk 0:02:41.7]} 22... Rac8 {[%clk
0:02:11.4]} 23. g5 {[%clk 0:02:42.1]} 23... hxg5 {[%clk 0:02:10.8]} 24. Nxg5
{[%clk 0:02:34.1]} 24... b4 {[%clk 0:02:05.2]} 25. Bh3 {[%clk 0:01:57.7]} 25...
Rc6 {[%clk 0:02:02.7]} 26. Nf3 {[%clk 0:01:17.2]} 26... Ba6 {[%clk 0:01:54.9]}
27. Kh2 {[%clk 0:01:14.8]} 27... Bb5 {[%clk 0:01:27.1]} 28. h6 {[%clk 0:01:03]}
28... g6 {[%clk 0:01:24.3]} 29. Bg5 {[%clk 0:01:01.5]} 29... Qa7 {[%clk
0:01:16.1]} 30. Qd2 {[%clk 0:00:51]} 30... f5 {[%clk 0:00:45.7]} 31. exf6 {[%clk
0:00:48.5]} 31... Qc7+ {[%clk 0:00:38.2]} 32. Bf4 {[%clk 0:00:48.4]} 32... Bd6
{[%clk 0:00:37.8]} 33. Bxd6 {[%clk 0:00:34.1]} 33... Qxd6+ {[%clk 0:00:38]} 34.
Kh1 {[%clk 0:00:33.4]} 34... e5 {[%clk 0:00:38.2]} 35. Qg5 {[%clk 0:00:30.6]}
35... Qxf6 {[%clk 0:00:35.8]} 36. Qxf6 {[%clk 0:00:18]} 36... Rxf6 {[%clk
0:00:36.7]} 37. Bxc8 {[%clk 0:00:18.3]} 37... Rxf3 {[%clk 0:00:36.7]} 38. Kg2
{[%clk 0:00:18.5]} 38... Rf6 {[%clk 0:00:31.9]} 39. Rh1 {[%clk 0:00:18.1]} 39...
Kh7 {[%clk 0:00:31.4]} 40. Bg4 {[%clk 0:00:17.2]} 40... e4 {[%clk 0:00:30.5]}
41. dxe4 {[%clk 0:00:12.6]} 41... dxe4 {[%clk 0:00:30.7]} 42. a3 {[%clk
0:00:12.9]} 42... bxa3 {[%clk 0:00:27.3]} 43. bxa3 {[%clk 0:00:13.8]} 43... Nc3
{[%clk 0:00:28.1]} 44. Rbe1 {[%clk 0:00:13.8]} 44... Bc6 {[%clk 0:00:25.5]} 45.
Kg3 {[%clk 0:00:10.6]} 45... g5 {[%clk 0:00:14.9]} 46. Rhg1 {[%clk 0:00:09.4]}
46... Kxh6 {[%clk 0:00:14.4]} 47. Rh1+ {[%clk 0:00:09.6]} 47... Kg6 {[%clk
0:00:14.6]} 48. Rh8 {[%clk 0:00:09.3]} 48... Kg7 {[%clk 0:00:11.9]} 49. Reh1
{[%clk 0:00:08.6]} 49... e3 {[%clk 0:00:11]} 50. R1h7+ {[%clk 0:00:08.6]} 50...
Kg6 {[%clk 0:00:11.4]} 51. Rc7 {[%clk 0:00:06.4]} 51... exf2 {[%clk 0:00:10.6]}
52. Rg8+ {[%clk 0:00:05.7]} 52... Kh6 {[%clk 0:00:10.9]} 53. Rh8+ {[%clk
0:00:05.7]} 53... Kg6 {[%clk 0:00:11.3]} 54. Bh5+ {[%clk 0:00:05.6]} 54... Kf5
{[%clk 0:00:11.3]} 55. Kxf2 {[%clk 0:00:05.8]} 55... Ne4+ {[%clk 0:00:11]} 56.
Ke1 {[%clk 0:00:04.9]} 56... Ke5 {[%clk 0:00:11.4]} 57. Rhc8 {[%clk 0:00:03.9]}
57... Bb5 {[%clk 0:00:11.5]} 58. Rd8 {[%clk 0:00:03.7]} 58... Rf1# {[%clk
0:00:11.1]} 0-1

[Event "*** Titled Tuesday Blitz"]
[Site "Chess.com"]
[Date "2021.03.09"]
[Round "8"]
[White "Gabrielian_Artur"]
[Black "Nf3c5"]
[Result "1-0"]
[WhiteElo "2812"]
[BlackElo "2625"]
[TimeControl "180+1"]
[EndTime "11:32:35 PST"]
[Termination "Gabrielian_Artur won on time"]

1. c4 {[%clk 0:03:00.9]} 1... c5 {[%clk 0:02:58.8]} 2. g3 {[%clk 0:03:00.1]}
2... g6 {[%clk 0:02:58.5]} 3. Bg2 {[%clk 0:03:00.4]} 3... Bg7 {[%clk 0:02:59.4]}
4. Nc3 {[%clk 0:03:00.7]} 4... Nc6 {[%clk 0:02:57.3]} 5. e4 {[%clk 0:03:00.2]}
5... h5 {[%clk 0:02:51.3]} 6. h3 {[%clk 0:02:58.1]} 6... h4 {[%clk 0:02:44.7]}
7. g4 {[%clk 0:02:57.2]} 7... d6 {[%clk 0:02:42.6]} 8. Nge2 {[%clk 0:02:57]}
8... Nd4 {[%clk 0:02:43]} 9. d3 {[%clk 0:02:55.7]} 9... e5 {[%clk 0:02:34.3]}
10. Nxd4 {[%clk 0:02:55.4]} 10... cxd4 {[%clk 0:02:33.7]} 11. Nd5 {[%clk
0:02:55.2]} 11... Be6 {[%clk 0:02:23.2]} 12. Qa4+ {[%clk 0:02:47.6]} 12... Kf8
{[%clk 0:02:21.4]} 13. f4 {[%clk 0:02:41.1]} 13... Bxd5 {[%clk 0:02:13.4]} 14.
exd5 {[%clk 0:02:38.9]} 14... exf4 {[%clk 0:02:14.3]} 15. Bxf4 {[%clk
0:02:37.1]} 15... Qe7+ {[%clk 0:01:51.3]} 16. Kd2 {[%clk 0:02:36.6]} 16... Be5
{[%clk 0:01:51.2]} 17. Bxe5 {[%clk 0:02:30.9]} 17... Qxe5 {[%clk 0:01:48.6]} 18.
Rae1 {[%clk 0:02:21.1]} 18... Qg3 {[%clk 0:01:24.1]} 19. Re2 {[%clk 0:02:09.5]}
19... Nf6 {[%clk 0:01:23.3]} 20. Rf1 {[%clk 0:01:59.9]} 20... Kg7 {[%clk
0:01:16.9]} 21. Rf3 {[%clk 0:01:58]} 21... Qh2 {[%clk 0:01:13.7]} 22. Ref2
{[%clk 0:01:57.7]} 22... Nh7 {[%clk 0:00:54.5]} 23. Rxf7+ {[%clk 0:01:46.8]}
23... Kh6 {[%clk 0:00:54.3]} 24. g5+ {[%clk 0:01:13.5]} 24... Nxg5 {[%clk
0:00:52.3]} 25. R7f4 {[%clk 0:01:13.5]} 25... Qg3 {[%clk 0:00:49.7]} 26. Qd7
{[%clk 0:01:02.3]} 26... Rhf8 {[%clk 0:00:39.6]} 27. Qxd6 {[%clk 0:00:40.5]}
27... Rad8 {[%clk 0:00:26.7]} 28. Qxf8+ {[%clk 0:00:30.8]} 28... Rxf8 {[%clk
0:00:26.3]} 29. Rxf8 {[%clk 0:00:31.5]} 29... Qe3+ {[%clk 0:00:26.3]} 30. Kc2
{[%clk 0:00:30.6]} 30... b5 {[%clk 0:00:21.8]} 31. cxb5 {[%clk 0:00:29.7]} 31...
Qe7 {[%clk 0:00:21.1]} 32. R8f4 {[%clk 0:00:25.1]} 32... Qc5+ {[%clk 0:00:21]}
33. Kb1 {[%clk 0:00:24.8]} 33... Qxb5 {[%clk 0:00:19.2]} 34. Rxh4+ {[%clk
0:00:24.8]} 34... Kg7 {[%clk 0:00:19.8]} 35. Rxd4 {[%clk 0:00:19.9]} 35... Qa5
{[%clk 0:00:19.8]} 36. Re2 {[%clk 0:00:17.5]} 36... Qb6 {[%clk 0:00:19.1]} 37.
Rc4 {[%clk 0:00:17.1]} 37... Qg1+ {[%clk 0:00:18.9]} 38. Rc1 {[%clk 0:00:17.1]}
38... Qd4 {[%clk 0:00:18.1]} 39. Rec2 {[%clk 0:00:16.2]} 39... Nf7 {[%clk
0:00:17.9]} 40. a3 {[%clk 0:00:16.1]} 40... Nd6 {[%clk 0:00:17.7]} 41. Ka2
{[%clk 0:00:16.1]} 41... Nf5 {[%clk 0:00:17.9]} 42. Rc7+ {[%clk 0:00:15.7]}
42... Kh6 {[%clk 0:00:18]} 43. Be4 {[%clk 0:00:15.9]} 43... Ne3 {[%clk
0:00:18.1]} 44. R7c6 {[%clk 0:00:15.8]} 44... Nxd5 {[%clk 0:00:15.1]} 45. Rxg6+
{[%clk 0:00:15.6]} 45... Kh5 {[%clk 0:00:15.5]} 46. Rgc6 {[%clk 0:00:16.1]}
46... Nf4 {[%clk 0:00:12.9]} 47. R6c4 {[%clk 0:00:15.6]} 47... Qe3 {[%clk
0:00:12.7]} 48. Rc5+ {[%clk 0:00:16.1]} 48... Kh4 {[%clk 0:00:12.7]} 49. R1c4
{[%clk 0:00:16.8]} 49... Kg3 {[%clk 0:00:12.6]} 50. Rg5+ {[%clk 0:00:16]} 50...
Kf2 {[%clk 0:00:12.7]} 51. Rf5 {[%clk 0:00:16.3]} 51... Ke1 {[%clk 0:00:12.5]}
52. Rc2 {[%clk 0:00:14.4]} 52... Ne2 {[%clk 0:00:12.2]} 53. Rf3 {[%clk
0:00:13.5]} 53... Qd4 {[%clk 0:00:06.7]} 54. h4 {[%clk 0:00:13.5]} 54... Qh8
{[%clk 0:00:06.1]} 55. Rh3 {[%clk 0:00:12.5]} 55... Qg8+ {[%clk 0:00:06.2]} 56.
Ka1 {[%clk 0:00:12.6]} 56... Nd4 {[%clk 0:00:05.2]} 57. Rh1+ {[%clk 0:00:12.2]}
1-0